{"text_format":"1","workbook":"xlsx","n_sheets":3,"sheets":["صفحة العمل","ترحيل الشراء","طباعة الشراء"],"not_rendered":{"charts":0,"images":0,"macros":1,"external_links":0,"defined_names":4,"comments":1,"pivot_tables":0},"unopened":[],"bounds":{"document_bytes":16777216,"sheet_cells":100000,"rows_first":2000,"rows_last":500,"rows_between":2000,"halvings":0,"cell_chars":16384,"cell_head_chars":4096},"cells_cut":0,"cells_raw":0,"read":"whole","date_system":"1900"}

{"sheet":"صفحة العمل","index":0,"n_rows":32,"n_cols":24,"rows_kept":32,"cut":false,"hidden":false,"merged":[[31,1,31,4],[14,1,14,2],[12,1,12,2],[10,18,10,19],[9,0,10,0],[11,0,14,0],[13,1,13,2],[15,12,19,23],[8,23,9,23],[9,1,9,2],[8,20,9,20],[8,21,9,21],[8,22,9,22],[10,5,14,5],[8,0,8,5],[8,6,8,19],[0,21,0,23],[0,0,0,9],[0,10,0,12],[0,13,0,20],[7,0,7,3],[10,1,10,2],[11,1,11,2],[14,18,14,19],[9,15,9,16],[10,15,10,16],[11,15,11,16],[12,15,12,16],[13,15,13,16],[14,15,14,16],[9,18,9,19],[12,18,12,19],[13,18,13,19],[11,18,11,19],[29,3,29,4],[21,6,21,9],[22,6,22,11],[26,6,26,13],[21,1,21,4],[23,3,23,4],[24,3,24,4],[25,3,25,4],[26,3,26,4],[15,0,20,8],[23,6,23,11],[25,6,25,8],[27,3,27,4],[28,3,28,4]]}
["بيان المواد المطلوبة",null,null,null,null,null,null,null,null,null,"آخر تاريخ صلاحية مدخلة",null,null,"المواد المشابهة",null,null,null,null,null,null,null,"اخر حركة تخريج"]
["م","اسم المادة","رقم البطاقة","وحدة القياس","طريقة حفظ المادة بالمستودع لبيان الصرف","رصيد بداية المدة","ادخال","تخريج","الرصيد الحالي","المطلوب","تاريخ الصلاحية \n( 1 )","تاريخ الصلاحية \n( 2 )","تاريخ الصلاحية \n( 3 )","رقم البطاقة","الرصيد","رقم البطاقة","الرصيد","رقم البطاقة","الرصيد","رقم البطاقة","الرصيد","اخر كمية تخريج","تاريخ اخر تاريخ تخريج","اسم الفني المستلم"]
[1,"w","w","عبوة",null,null,null,null,100,25]
[2,"w","w","فلاكونة",null,null,null,null,200,30]
[null,"w","w"]
[4,"w","w","بلاك",null,null,null,null,400,40]
[5,"w","w","عدد",null,null,null,null,500,45]
["طلـــــب شــــــــــراء"]
["بيان طلب شراء المواد",null,null,null,null,null,"بيان آخر ادخال للمادة خلال السنة المالية الحالية",null,null,null,null,null,null,null,null,null,null,null,null,null,"قيمة الوحدة بـ $","قيمة الطلب بعد إضافة العدد ","قيمة الطلب التقديرية النهائي ","القيمة الكلية للطلب"]
["رقم الطلب","اسم المادة حسب نموذج طلب الشراء",null,"حد الشراء","ملاحظات الطلب كل على حدا","ملاحظات الطلب بشكل عام","اصغر سعر ادخال","اقل سعر ادخال","اخر كمية ادخال","اخر سعر ادخال للمادة ل.س","اخر تاريخ ادخال","اسم المورد","أسلوب الادخال","سعر الـ \n$\nعند الادخال","رقم الفاتورة","تاريخ الفاتورة",null,"رقم العقد او الطلب","تاريخ الطلب او العقد"]
[null,"سكر الدم",null,null,"يعمل على بيوسيستم","صلاحية المواد ستة اشهر",null,null,null,10,"2021-12-12"]
[1,"بولة دموية",null,null,"يعمل على ديروي",null,null,null,null,20,"2021-08-01"]
[]
[null,"حمض البول",null,null,"يدوي",null,null,null,null,40,"2022-01-01"]
[null,"كوليسترول",null,null,"نصف الي",null,null,null,null,50,"2018-02-02"]
[null,null,null,null,null,null,null,null,null,5,"2017-01-01"]
[null,null,null,null,null,null,null,null,null,6,"2016-01-03"]
[]
[null,null,null,null,null,null,null,null,null,8,"2011-06-06"]
[null,null,null,null,null,null,null,null,null,9,"1999-06-05"]
[null,null,null,null,null,null,null,null,null,4,"2000-01-01"]
[null,"الترحيل من شيت صفحة العمل الى شيت ترحيل الشراء",null,null,null,null,"زر طباعة شيت ( طباعة الشراء )"]
[null,"من ","الى",null,null,null,"طباعة الاسطر تتوقف على قيمة العمود B بشيت الطباعة"]
[null,"A12","A2","خلية واحدة",null,null,"حيث يهمل السطر ذو القيمة 0 "]
[null,"B11:B15","C2:C6","نطاق",null,null,"مثال"]
[null,"J3:J7","D2:D6","نطاق",null,null,"في حال الخلية رقم B15 = 0"]
[null,"D3:D7","E2:E6","نطاق",null,null,"لايتم طباعة المجال B15:J16 وهكذا "]
[null,"I3:I7","F2:F6","نطاق"]
[null,"E11:E15","G2:G6","نطاق"]
[null,"F11","H2","خلية واحدة"]
[]
[null,"الخلية رقم A12 يكون فيها الرقم هو اخر رقم ترحيل بعد إضافة رقم (1 ) اليه"]

{"sheet":"ترحيل الشراء","index":1,"n_rows":4,"n_cols":28,"rows_kept":4,"cut":false,"hidden":false,"merged":[]}
["رقم الطلب","تاريخ الطلب","اسم المادة حسب نموذج الشراء","الكمية المطلوبة","الوحدة ","الرصيد وقت طلب الشراء","ملاحظات الطلب كل على حدا","ملاحظات الطلب بشكل عام"]
[1]
["م","1900-01-11","سكر الدم","بولة دموية",null,"حمض البول","كوليسترول",null,null,null,null,null,"عبوة","فلاكونة",null,"بلاك","عدد",null,null,null,null,null,"يعمل على بيوسيستم","يعمل على ديروي",null,"يدوي","نصف الي","يعمل على بيوسيستم"]
["م","1900-01-12","سكر الدم","بولة دموية",null,"حمض البول","كوليسترول",null,null,null,null,null,"عبوة","فلاكونة",null,"بلاك","عدد",null,null,null,null,null,"يعمل على بيوسيستم","يعمل على ديروي",null,"يدوي","نصف الي"]

{"sheet":"طباعة الشراء","index":2,"n_rows":30,"n_cols":10,"rows_kept":30,"cut":false,"hidden":false,"merged":[[0,0,25,0],[0,1,0,3],[0,5,0,6],[0,7,0,9],[0,10,25,10],[1,7,1,9],[2,2,2,6],[2,7,2,9],[3,5,3,6],[3,7,3,9],[5,1,5,9],[6,1,6,9],[7,1,9,1],[7,2,9,3],[7,4,9,4],[7,5,9,5],[7,6,7,7],[7,8,9,8],[7,9,9,9],[8,6,9,6],[10,9,11,9],[12,7,13,7],[12,9,13,9],[8,7,9,7],[10,1,11,1],[10,2,11,3],[10,4,11,4],[10,5,11,5],[10,6,11,6],[10,7,11,7],[12,1,13,1],[12,2,13,3],[12,4,13,4],[12,5,13,5],[12,6,13,6],[14,9,15,9],[16,1,17,1],[16,2,17,3],[16,4,17,4],[16,5,17,5],[16,6,17,6],[16,7,17,7],[16,9,17,9],[14,1,15,1],[14,2,15,3],[14,4,15,4],[14,5,15,5],[14,6,15,6],[14,7,15,7],[22,1,22,4],[22,5,22,7],[23,1,23,8],[24,1,25,9],[18,9,19,9],[20,1,20,4],[20,5,20,6],[20,7,20,9],[21,1,21,4],[21,5,21,7],[18,1,19,1],[18,2,19,3],[18,4,19,4],[18,5,19,5],[18,6,19,6],[18,7,19,7],[27,1,27,2],[27,6,27,8],[28,1,28,2],[28,7,28,8],[26,1,26,2],[26,6,26,8]]}
[2,null,null,null," ",null,null,"تاريـــــخ الطـلــــب"]
[]
[null,null,"طلـب شــــــراء ",null,null,null,null,"رقــــــم طـلب المــســــــتودع"]
[]
[]
[]
[null,"يرجى الموافقة والايعاز الى لجنة الشراء الطبية  لتأمين المواد التالية وذلك لضرورة المصلحة العامة"]
[null,"متسلسل","اسم المادة",null,"وحدة القياس","رصيد المستودع","الكمية المطلوبة",null,"آخر سعر وتاريخ شراء للوحدة","ملاحظات"]
[null,null,null,null,null,null,"رقما","كتابة"]
[]
[null,{"$f":"('صفحة العمل'!A3)","v":1},{"$f":"('صفحة العمل'!B11)","v":"سكر الدم"},null,{"$f":"('صفحة العمل'!D3)","v":"عبوة"},{"$f":"('صفحة العمل'!I3)","v":100},{"$f":"('صفحة العمل'!J3)","v":25},"دالة التفقيط",{"$f":"IF(ISERROR('صفحة العمل'!J11),'صفحة العمل'!J16,IF('صفحة العمل'!J11=0,'صفحة العمل'!J16,'صفحة العمل'!J11))","v":10},{"$f":"('صفحة العمل'!E11)","v":"يعمل على بيوسيستم"}]
[null,null,null,null,null,null,null,null,{"$f":"IF(ISERROR('صفحة العمل'!K11),'صفحة العمل'!K16,IF('صفحة العمل'!K11=0,'صفحة العمل'!K16,'صفحة العمل'!K11))","v":"2021-12-12"}]
[null,{"$f":"('صفحة العمل'!A4)","v":2},{"$f":"('صفحة العمل'!B12)","v":"بولة دموية"},null,{"$f":"('صفحة العمل'!D4)","v":"فلاكونة"},{"$f":"('صفحة العمل'!I4)","v":200},{"$f":"('صفحة العمل'!J4)","v":30},"دالة التفقيط",{"$f":"IF(ISERROR('صفحة العمل'!J12),'صفحة العمل'!J17,IF('صفحة العمل'!J12=0,'صفحة العمل'!J17,'صفحة العمل'!J12))","v":20},{"$f":"('صفحة العمل'!E12)","v":"يعمل على ديروي"}]
[null,null,null,null,null,null,null,null,{"$f":"IF(ISERROR('صفحة العمل'!K12),'صفحة العمل'!K17,IF('صفحة العمل'!K12=0,'صفحة العمل'!K17,'صفحة العمل'!K12))","v":"2021-08-01"}]
[null,{"$f":"('صفحة العمل'!A5)","v":0},{"$f":"('صفحة العمل'!B13)","v":0},null,{"$f":"('صفحة العمل'!D5)","v":0},{"$f":"('صفحة العمل'!I5)","v":0},{"$f":"('صفحة العمل'!J5)","v":0},"دالة التفقيط",{"$f":"IF(ISERROR('صفحة العمل'!J13),'صفحة العمل'!J18,IF('صفحة العمل'!J13=0,'صفحة العمل'!J18,'صفحة العمل'!J13))","v":0},{"$f":"('صفحة العمل'!E13)","v":0}]
[null,null,null,null,null,null,null,null,{"$f":"IF(ISERROR('صفحة العمل'!K13),'صفحة العمل'!K18,IF('صفحة العمل'!K13=0,'صفحة العمل'!K18,'صفحة العمل'!K13))","v":"00:00:00"}]
[null,{"$f":"('صفحة العمل'!A6)","v":4},{"$f":"('صفحة العمل'!B14)","v":"حمض البول"},null,{"$f":"('صفحة العمل'!D6)","v":"بلاك"},{"$f":"('صفحة العمل'!I6)","v":400},{"$f":"('صفحة العمل'!J6)","v":40},"دالة التفقيط",{"$f":"IF(ISERROR('صفحة العمل'!J14),'صفحة العمل'!J19,IF('صفحة العمل'!J14=0,'صفحة العمل'!J19,'صفحة العمل'!J14))","v":40},{"$f":"('صفحة العمل'!E14)","v":"يدوي"}]
[null,null,null,null,null,null,null,null,{"$f":"IF(ISERROR('صفحة العمل'!K14),'صفحة العمل'!K19,IF('صفحة العمل'!K14=0,'صفحة العمل'!K19,'صفحة العمل'!K14))","v":"2022-01-01"}]
[null,{"$f":"('صفحة العمل'!A7)","v":5},{"$f":"('صفحة العمل'!B15)","v":"كوليسترول"},null,{"$f":"('صفحة العمل'!D7)","v":"عدد"},{"$f":"('صفحة العمل'!I7)","v":500},{"$f":"('صفحة العمل'!J7)","v":45},"دالة التفقيط",{"$f":"IF(ISERROR('صفحة العمل'!J15),'صفحة العمل'!J20,IF('صفحة العمل'!J15=0,'صفحة العمل'!J20,'صفحة العمل'!J15))","v":50},{"$f":"('صفحة العمل'!E15)","v":"نصف الي"}]
[null,null,null,null,null,null,null,null,{"$f":"IF(ISERROR('صفحة العمل'!K15),'صفحة العمل'!K20,IF('صفحة العمل'!K15=0,'صفحة العمل'!K20,'صفحة العمل'!K15))","v":"2018-02-02"}]
[null,"عدد الأقلام"]
[null,"قيمة الطلب لآخر ادخال جميع الطلبات :",null,null,null,null,null,null,"ليرة سورية"]
[null,"قيمة الطلب التقديرية الحالية لجميع للطلبات :",null,null,null,null,null,null,"ليرة سورية"]
[null,"     :    ملاحظات طلب الشراء"]
[null,{"$f":"('صفحة العمل'!F11)","v":"صلاحية المواد ستة اشهر"}]
[]
[2]
[2]
[2]
[2]